bitfinex-derivatives/quotes_BTCF0:USTF0_20210105
["timestamp","ask_amount","ask_price","bid_price","bid_amount"]
[1609813310043,0.146,32555.0,32541.0,0.13283]
[1609813311144,0.146,32555.0,32543.0,0.13632608]
[1609813311344,0.8555,32555.0,32543.0,0.13632608]
[1609813311944,0.146,32555.0,32543.0,0.13632608]
[1609813312345,0.146,32555.0,32546.0,4.3559]
[1609813312545,0.296,32570.0,32546.0,4.3559]
[1609813313145,0.13632608,32547.0,32546.0,4.3559]
[1609813313346,0.13632608,32547.0,32543.0,0.13632608]
[1609813315352,0.11189,32555.0,32541.0,0.13283]
[1609813315751,0.11189,32555.0,32538.0,4.5068]
[1609813315951,0.11189,32555.0,32541.0,0.13593]
[1609813317154,0.11189,32555.0,32547.0,0.13632608]
[1609813318858,4.3417,32558.0,32547.0,0.13632608]
[1609813319358,4.3417,32558.0,32541.0,0.13593]
[1609813319558,4.4873,32558.0,32541.0,0.13593]
[1609813319961,4.4873,32558.0,32544.0,0.13632608]
[1609813320564,4.4873,32558.0,32541.0,0.13593]
[1609813320964,4.4873,32558.0,32538.0,4.5068]
[1609813321865,4.4873,32558.0,32551.0,0.13632608]
[1609813322068,0.1456,32558.0,32551.0,0.13632608]
[1609813323869,0.13632608,32552.0,32551.0,0.13632608]
[1609813325370,0.1456,32558.0,32551.0,0.13632608]
[1609813325569,0.1465,32565.0,32551.0,0.78813608]
[1609813325971,0.1465,32565.0,32560.0,0.13632608]
[1609813326572,3.8028,32567.0,32560.0,0.13632608]
[1609813326972,3.8028,32567.0,32551.0,0.09941]
[1609813327873,3.8028,32567.0,32559.0,0.13632608]
[1609813328374,3.8028,32567.0,32551.0,0.09941]
[1609813328974,3.8028,32567.0,32548.0,3.6041]
[1609813330177,3.8028,32567.0,32554.0,0.13632608]
[1609813330477,0.12362,32570.0,32544.0,0.1322]
[1609813330677,3.5409,32559.0,32537.0,2.23139517]
[1609813331879,3.5409,32559.0,32535.0,2.23201705]
[1609813332279,3.5409,32559.0,32549.0,0.13632608]
[1609813333583,3.5409,32559.0,32541.0,0.1611]
[1609813333984,0.10557,32562.0,32541.0,0.1611]
[1609813334185,4.9376,32548.0,32541.0,0.1611]
[1609813334383,0.13632608,32542.0,32539.0,0.13632608]
[1609813334582,0.693,32540.0,32539.0,0.13632608]
[1609813335586,0.13632608,32542.0,32534.0,0.1231]
[1609813335785,0.13632608,32542.0,32530.0,2.23227217]
[1609813336187,0.78312608,32542.0,32527.0,2.23302998]
[1609813336384,0.13632608,32528.0,32527.0,2.23302998]
[1609813336987,0.13632608,32528.0,32519.0,2.23328188]
[1609813337186,4.6208,32525.0,32519.0,2.23328188]
[1609813337790,0.13632608,32528.0,32514.0,2.23332658]
[1609813337988,0.13632608,32528.0,32514.0,2.39385658]
[1609813338388,0.13632608,32528.0,32527.0,0.13632608]
[1609813338590,0.13632608,32528.0,32514.0,0.16053]
[1609813340293,3.819,32531.0,32523.0,0.13632608]
[1609813341193,3.819,32531.0,32514.0,0.16053]
[1609813342295,3.819,32531.0,32528.0,0.13632608]
[1609813342496,0.11687,32537.0,32528.0,0.13632608]
[1609813342697,0.1582,32544.0,32528.0,0.13632608]
[1609813342698,4.3381,32542.0,32528.0,0.13632608]
[1609813343097,0.1582,32544.0,32528.0,0.13632608]
[1609813343298,0.46119533,32547.0,32528.0,0.13632608]
[1609813343498,0.2989,32550.0,32528.0,0.13632608]
[1609813344300,0.00899904,32552.0,32528.0,0.13632608]
[1609813344500,0.00899904,32552.0,32528.0,0.10164]
[1609813344901,3.8921,32559.0,32528.0,0.10164]
[1609813344902,3.8921,32559.0,32542.0,0.13632608]
[1609813345401,3.8921,32559.0,32528.0,0.10164]
[1609813346205,3.9829,32559.0,32528.0,0.10164]
[1609813346403,3.9829,32559.0,32526.0,3.5979]
[1609813346605,0.46105613,32557.0,32526.0,3.5979]
[1609813346805,0.46999919,32557.0,32526.0,3.5979]
[1609813347005,0.00894306,32557.0,32528.0,0.13632608]
[1609813347305,0.00894306,32557.0,32521.0,0.12098]
[1609813347606,4.0876,32546.0,32521.0,0.12098]
[1609813347905,4.23487,32546.0,32521.0,0.12098]
[1609813348406,4.23487,32546.0,32514.0,0.16053]
[1609813348607,4.23487,32546.0,32511.0,4.5493]
[1609813349006,4.23487,32546.0,32523.0,0.13632608]
[1609813349406,4.69608207,32546.0,32523.0,0.13632608]
[1609813350208,4.23487,32546.0,32523.0,0.13632608]
[1609813351109,0.13632608,32524.0,32523.0,0.13632608]
[1609813351308,0.151,32536.0,32523.0,0.13632608]
[1609813352711,3.5565,32525.0,32516.0,0.15696]
[1609813353112,0.10564,32529.0,32516.0,0.15696]
[1609813353313,4.0851,32520.0,32508.0,0.15206]
[1609813353512,0.15922,32522.0,32509.0,2.22788191]
[1609813353711,4.7296,32516.0,32509.0,2.22788191]
[1609813354113,0.15922,32522.0,32509.0,2.22788191]
[1609813354316,0.15922,32522.0,30820.0,0.3323204]
[1609813354317,0.15922,32522.0,32498.0,0.14394]
[1609813354914,4.9354,32517.0,32498.0,0.14394]
[1609813355315,4.9354,32517.0,32510.0,0.13632608]
[1609813356417,4.9354,32517.0,32498.0,0.14394]
[1609813357218,4.9354,32517.0,32507.0,0.13632608]
[1609813358218,4.9354,32517.0,32498.0,0.14394]
[1609813359318,4.9354,32517.0,32502.0,0.13632608]
[1609813360319,0.15922,32522.0,32502.0,0.13632608]
[1609813360519,0.10564,32529.0,32502.0,0.13632608]
[1609813360719,0.31489797,32533.0,32502.0,0.13632608]
[1609813360920,0.2885,32533.0,32502.0,0.13632608]
[1609813361320,0.2885,32533.0,32508.0,0.13632608]
[1609813363322,0.2885,32533.0,32513.0,0.13632608]
[1609813364224,0.151,32536.0,32513.0,0.13632608]
[1609813364423,3.4632,32537.0,32513.0,0.23488608]
[1609813365226,0.13632608,32514.0,32513.0,0.09856]
[1609813365826,0.13632608,32514.0,32509.0,0.13632608]
[1609813367529,0.15235,32517.0,32503.0,0.1043]
[1609813367728,4.27855,32517.0,32503.0,0.1043]
[1609813367930,4.27855,32517.0,32506.0,0.13632608]
[1609813369932,0.13632608,32507.0,32506.0,0.13632608]
[1609813370934,4.27855,32517.0,32496.0,0.10289]
[1609813371133,4.27855,32517.0,32488.0,0.2793]
[1609813371934,0.15235,32517.0,32504.0,0.13632608]
[1609813372135,0.12247,32525.0,32504.0,0.13632608]
[1609813372334,4.2836,32511.0,32504.0,0.13632608]
[1609813372537,4.2836,32511.0,32498.0,0.14349]
[1609813373836,4.2836,32511.0,32488.0,0.2793]
[1609813374035,4.2836,32511.0,32497.0,0.13632608]
[1609813374837,0.15349,32512.0,32497.0,0.13632608]
[1609813375038,0.15349,32512.0,32490.0,0.14004]
[1609813375039,0.15349,32512.0,32495.0,3.8618]
[1609813375239,0.13409,32519.0,32497.0,0.1284]
[1609813376038,0.13409,32519.0,32516.0,0.13632608]
[1609813376439,0.02641569,32539.0,32516.0,0.13632608]
[1609813376841,0.00887453,32543.0,32512.0,5.00159]
[1609813378242,0.17373929,32546.0,32524.0,0.13632608]
[1609813378943,0.17373929,32546.0,32520.0,0.15527]
[1609813378944,0.14727,32546.0,32520.0,0.15527]
[1609813379242,0.02646263,32547.0,32520.0,0.15527]
[1609813379644,3.8376,32539.0,32520.0,0.15527]
[1609813379844,3.5789,32533.0,32520.0,0.15527]
[1609813380246,3.5789,32533.0,32523.0,0.13632608]
[1609813381047,3.5789,32533.0,32520.0,0.15527]
[1609813381445,3.5789,32533.0,32512.0,0.09699]
[1609813381646,3.5789,32533.0,32504.0,0.1045]
[1609813381847,3.5789,32533.0,32500.0,4.8401]
[1609813382649,3.5789,32533.0,32516.0,0.13632608]
[1609813384654,0.13632608,32517.0,32507.0,0.15755]
[1609813385254,0.0909,32516.0,32493.0,5.0573]
[1609813385459,0.22834,32516.0,32493.0,5.0573]
[1609813386657,0.13744,32516.0,32500.0,0.13632608]
[1609813387658,0.0912,32515.0,32500.0,0.13632608]
[1609813387858,0.13744,32516.0,32493.0,5.0573]
[1609813388660,0.13744,32516.0,32494.0,0.13632608]
[1609813388861,0.091,32515.0,32494.0,0.13632608]
[1609813389161,0.13744,32516.0,32494.0,0.13632608]
[1609813389764,4.633,32509.0,32494.0,0.13632608]
[1609813390164,4.77174,32509.0,32494.0,0.13632608]
[1609813390363,0.13874,32509.0,32492.0,0.10537]
[1609813390766,0.13632608,32493.0,32482.0,0.13632608]
[1609813390965,3.4596,32492.0,32482.0,0.13632608]
[1609813392466,0.0913,32491.0,32482.0,0.13632608]
[1609813392867,0.0913,32491.0,32488.0,0.13632608]
[1609813394268,0.13632608,32493.0,32488.0,0.13632608]
[1609813394469,4.0241,32500.0,32485.0,0.12683]
[1609813394868,0.13632608,32488.0,32487.0,0.13632608]
[1609813395471,0.22872608,32488.0,32487.0,0.13632608]
[1609813395871,0.13632608,32488.0,32487.0,0.13632608]
[1609813396773,0.22972608,32488.0,32487.0,0.13632608]
[1609813397173,0.13632608,32488.0,32487.0,0.13632608]
[1609813398676,0.13632608,32488.0,32473.0,2.22611507]
[1609813398875,4.7164,32496.0,32484.0,0.13632608]
[1609813400980,0.13632608,32485.0,32484.0,0.13632608]
[1609813402182,0.15068,32501.0,32484.0,0.13632608]
[1609813402380,0.46168052,32513.0,32484.0,0.13632608]
[1609813402881,0.46168052,32513.0,32493.0,0.13632608]
[1609813403282,0.46168052,32513.0,32493.0,0.27089608]
[1609813403881,0.2707,32532.0,32493.0,0.27089608]
[1609813404080,4.41304338,32533.0,32493.0,0.27089608]
[1609813404880,4.41304338,32533.0,32512.0,0.13632608]
[1609813405882,4.41304338,32533.0,32509.0,0.10633]
[1609813406082,1.62583648,32525.0,32509.0,0.10633]
[1609813406281,0.02626798,32517.0,32509.0,0.10633]
[1609813406883,0.02626798,32517.0,32512.0,0.13632608]
[1609813407085,0.00888032,32533.0,32512.0,0.13632608]
[1609813407686,0.00888701,32534.0,32512.0,0.13632608]
[1609813408887,0.13632608,32513.0,32512.0,0.13632608]
[1609813412893,0.13632608,32517.0,32512.0,0.13632608]
[1609813414193,0.22952608,32517.0,32512.0,0.13632608]
[1609813414394,0.13632608,32517.0,32512.0,0.13632608]
[1609813414595,0.13632608,32517.0,32509.0,0.10633]
[1609813414796,0.13632608,32517.0,32497.0,4.0236]
[1609813414996,0.1322,32522.0,32507.0,0.13632608]
[1609813415198,0.1322,32522.0,32503.0,0.15651]
[1609813415602,4.7718,32504.0,32503.0,1e-05]
[1609813415802,4.7718,32504.0,32493.0,0.13457]
[1609813416003,4.7718,32504.0,32491.0,2.23583796]
[1609813416703,0.0912,32503.0,32491.0,2.23583796]
[1609813416907,0.13632608,32492.0,32491.0,2.23583796]
[1609813418308,0.13632608,32492.0,32485.0,0.10867]
[1609813418708,0.13632608,32492.0,32482.0,4.3854]
[1609813418912,0.16118,32508.0,32488.0,0.13632608]
[1609813420011,0.092,32507.0,32488.0,0.13632608]
[1609813420210,0.0918,32506.0,32488.0,0.13632608]
[1609813420910,0.13632608,32489.0,32488.0,0.13632608]
[1609813421111,0.22982608,32489.0,32488.0,0.13632608]
[1609813422016,0.13632608,32489.0,32488.0,0.13632608]
[1609813423214,0.22802608,32489.0,32488.0,0.13632608]
[1609813423614,0.13632608,32489.0,32488.0,0.13632608]
[1609813424715,0.22802608,32489.0,32488.0,0.13632608]
[1609813425819,0.13632608,32489.0,32488.0,0.13632608]
[1609813426821,0.22772608,32489.0,32488.0,0.13632608]
[1609813427821,0.13632608,32489.0,32488.0,0.13632608]
[1609813429425,0.22832608,32489.0,32488.0,0.13632608]
[1609813431228,0.13557,32493.0,32478.0,0.1192]
[1609813431629,0.13325,32501.0,32489.0,0.13632608]
[1609813432235,0.0932,32507.0,32489.0,4.28612608]
[1609813432633,0.0932,32507.0,32489.0,4.1498]
[1609813433331,0.10227369,32511.0,32489.0,4.1498]
[1609813433332,0.00887369,32511.0,32489.0,4.1498]
[1609813433731,0.00887369,32511.0,32501.0,0.13632608]
[1609813433933,0.28208819,32517.0,32501.0,0.13632608]
[1609813434133,0.00888819,32517.0,32501.0,0.13632608]
[1609813434534,0.02648902,32517.0,32501.0,0.13632608]
[1609813435237,0.00889405,32518.0,32501.0,0.13632608]
[1609813435739,0.13632608,32502.0,32501.0,0.13632608]
[1609813437238,0.13936,32507.0,32501.0,0.13632608]
[1609813437840,0.13632608,32502.0,32501.0,0.13632608]
[1609813451262,0.13936,32507.0,32501.0,0.13632608]
[1609813451464,0.02667503,32516.0,32501.0,0.13632608]
[1609813451862,0.02667503,32516.0,32513.0,0.13632608]
[1609813452064,0.0909,32518.0,32513.0,0.13632608]
[1609813452264,0.02669465,32519.0,32513.0,0.13632608]
[1609813452465,0.1322,32522.0,32513.0,0.13632608]
[1609813452665,0.00897192,32524.0,32513.0,0.13632608]
[1609813453467,0.54570364,32525.0,32513.0,0.13632608]
[1609813453468,0.0923,32523.0,32513.0,0.13632608]
[1609813453868,0.24626,32523.0,32517.0,0.13632608]
[1609813455569,0.15396,32523.0,32517.0,0.13632608]
[1609813455869,0.13632608,32518.0,32517.0,0.13632608]
[1609813457473,0.00897888,32525.0,32517.0,0.13632608]
[1609813457871,0.00897888,32525.0,32524.0,0.13632608]
[1609813458472,0.10027888,32525.0,32524.0,0.13632608]
[1609813458673,0.00897888,32525.0,32524.0,0.13632608]
[1609813458875,0.13632608,32526.0,32524.0,0.13632608]
[1609813459678,0.0934,32525.0,32524.0,0.13632608]
[1609813459874,0.13632608,32526.0,32524.0,0.13632608]
[1609813460577,0.12782,32530.0,32524.0,0.13632608]
[1609813461879,0.12782,32530.0,32529.0,0.13632608]
[1609813462480,0.0922,32533.0,32529.0,0.13632608]
[1609813464081,0.13632608,32534.0,32529.0,0.13632608]
[1609813465883,0.13632608,32534.0,32533.0,0.13632608]
[1609813470089,0.00905077,32546.0,32533.0,0.13632608]
[1609813471089,0.0269518,32548.0,32533.0,0.13632608]
[1609813471590,0.00904736,32547.0,32533.0,0.13632608]
[1609813471790,0.11925736,32547.0,32534.0,4.8217]
[1609813471990,0.11925736,32547.0,32546.0,0.13632608]
[1609813473591,0.11021,32547.0,32546.0,0.13632608]
[1609813474191,0.02702914,32554.0,32546.0,0.13632608]
[1609813474792,0.02702914,32554.0,32546.0,4.26932608]
[1609813475893,0.02702914,32554.0,32553.0,0.13632608]
[1609813476095,0.00905676,32555.0,32553.0,0.13632608]
[1609813477297,0.13632608,32559.0,32553.0,0.13632608]
[1609813477697,0.00905155,32562.0,32529.0,0.12217]
[1609813477897,4.8067,32554.0,32529.0,0.12217]
[1609813478098,4.91304,32554.0,32518.0,3.9504]
[1609813478899,4.91304,32554.0,32544.0,0.13632608]
[1609813479499,4.91304,32554.0,32519.0,0.15838]
[1609813479700,0.00902749,32552.0,32519.0,0.15838]
[1609813480201,0.02690619,32553.0,32519.0,0.15838]
[1609813480799,0.02690619,32553.0,32540.0,0.13632608]
[1609813481703,0.00902654,32552.0,32540.0,0.13632608]
[1609813482102,0.00902654,32552.0,32519.0,0.15838]
[1609813482804,0.00902654,32552.0,32532.0,0.13632608]
[1609813483404,0.02692146,32551.0,32532.0,0.13632608]
[1609813484803,0.13632608,32533.0,32532.0,0.13632608]
[1609813495821,0.72972608,32533.0,32519.0,0.15838]
[1609813496022,0.26512608,32533.0,32499.0,0.2765]
[1609813496219,4.7947,32524.0,32499.0,0.2765]
[1609813496419,4.9346,32524.0,32499.0,0.2765]
[1609813496818,4.9346,32524.0,32498.0,6.93157632]
[1609813497021,4.9346,32524.0,32513.0,0.13632608]
[1609813499021,0.13632608,32514.0,32513.0,0.13632608]
[1609813499521,4.9346,32524.0,32513.0,0.13632608]
[1609813499721,0.1399,32524.0,32513.0,0.13632608]
[1609813501124,0.1399,32524.0,32504.0,0.11899]
[1609813501423,4.4277,32525.0,32504.0,0.11899]
[1609813501623,4.4277,32525.0,32513.0,0.13632608]
[1609813503528,0.13632608,32514.0,32513.0,0.13632608]
[1609813503727,0.13632608,32514.0,32504.0,0.11899]
[1609813503926,0.13632608,32514.0,32486.0,2.22974451]
[1609813504126,3.9505,32510.0,32486.0,2.22974451]
[1609813504527,3.9505,32510.0,32483.0,2.2299831]
[1609813505128,3.9505,32510.0,32479.0,2.40613481]
[1609813506229,3.9505,32510.0,32479.0,2.22903481]
[1609813506627,3.9505,32510.0,32476.0,7.44708771]
[1609813506628,3.9505,32510.0,32481.0,2.22918556]
[1609813506827,3.9505,32510.0,32481.0,2.37818556]
[1609813507529,3.9505,32510.0,32498.0,0.13632608]
[1609813507930,3.9505,32510.0,32498.0,0.24271608]
[1609813509634,0.13632608,32499.0,32498.0,0.24271608]
[1609813512436,0.13632608,32499.0,32498.0,0.10639]
[1609813513137,0.13632608,32499.0,32481.0,0.149]
[1609813513338,0.13632608,32499.0,32476.0,5.0323]
[1609813513537,3.9505,32510.0,32493.0,0.13632608]
[1609813517243,3.9505,32510.0,32489.0,0.1173]
[1609813517644,3.9505,32510.0,32490.0,0.13632608]
[1609813518245,3.9505,32510.0,32489.0,0.1173]
[1609813518745,3.9505,32510.0,32476.0,5.0323]
[1609813519545,3.9505,32510.0,32486.0,0.13632608]
[1609813520149,4.0426,32510.0,32486.0,0.13632608]
[1609813520347,3.9505,32510.0,32486.0,0.13632608]
[1609813521550,0.13632608,32487.0,32486.0,0.13632608]
[1609813529159,4.7257,32494.0,32486.0,0.13632608]
[1609813529359,0.15556,32501.0,32486.0,0.13632608]
[1609813529560,5.1668,32511.0,32486.0,0.13632608]
[1609813529760,5.1668,32511.0,32493.0,0.13632608]
[1609813531765,0.13632608,32494.0,32493.0,0.13632608]
[1609813532165,0.13632608,32494.0,32483.0,0.16064]
[1609813532365,4.7116,32485.0,32462.0,4.1171]
[1609813532567,0.13632608,32494.0,32458.0,2.21880629]
[1609813532766,4.8915,32472.0,32458.0,2.34323629]
[1609813533567,4.8915,32472.0,32458.0,0.12443]
[1609813533766,0.14546,32487.0,32458.0,0.12443]
[1609813533970,0.13632608,32459.0,32458.0,0.00533]
[1609813534766,0.13632608,32459.0,32437.0,0.46984152]
[1609813535169,0.13632608,32459.0,32429.0,2.2154037]
[1609813537873,0.29604608,32459.0,32429.0,2.2154037]
[1609813538072,0.15972,32459.0,32452.0,0.13632608]
[1609813538572,0.15972,32459.0,32441.0,0.14364]
[1609813540674,0.13632608,32442.0,32441.0,0.14364]
[1609813542377,0.15972,32459.0,32441.0,0.14364]
[1609813542777,0.12443,32466.0,32458.0,0.13632608]
[1609813542978,0.00854213,32482.0,32458.0,0.13632608]
[1609813543877,0.00854213,32482.0,32452.0,0.13886]
[1609813544078,0.16367213,32482.0,32452.0,0.13886]
[1609813544277,0.4622007,32476.0,32453.0,0.5162]
[1609813544678,0.4622007,32476.0,32465.0,0.13632608]
[1609813545078,0.15513,32482.0,32465.0,0.13632608]
[1609813546581,0.15513,32482.0,32460.0,4.7094]
[1609813546780,0.15513,32482.0,32459.0,0.1081]
[1609813546981,0.15513,32482.0,32461.0,0.13632608]
[1609813547181,3.5681,32469.0,32461.0,0.13632608]
[1609813547684,3.5681,32469.0,32459.0,0.1081]
[1609813547881,3.5681,32469.0,32452.0,0.13886]
[1609813548081,3.5681,32469.0,32441.0,0.14364]
[1609813548281,0.14181,32472.0,32421.0,2.39370575]
[1609813548482,0.14181,32472.0,32425.0,0.13245]
[1609813548483,4.0062,32462.0,32425.0,0.13245]
[1609813548680,4.12198,32462.0,32425.0,0.13245]
[1609813549081,4.12198,32462.0,32439.0,0.13632608]
[1609813549281,4.12198,32462.0,32439.0,0.29047608]
[1609813550581,4.12198,32462.0,32439.0,0.15415]
[1609813550983,0.13632608,32440.0,32439.0,0.29047608]
[1609813551784,0.13632608,32440.0,32439.0,0.15415]
[1609813551984,0.13632608,32440.0,32425.0,0.13245]
[1609813552383,4.4721,32433.0,32425.0,0.13245]
[1609813553485,4.4721,32433.0,32399.0,2.20975449]
[1609813554287,0.139,32448.0,32423.0,0.13632608]
[1609813554688,0.139,32448.0,32423.0,0.75945608]
[1609813555990,0.139,32448.0,32423.0,0.62313]
[1609813556390,0.139,32448.0,32441.0,0.13632608]
[1609813558391,0.13632608,32442.0,32441.0,0.13632608]
[1609813558791,0.13632608,32442.0,32434.0,0.15625]
[1609813559791,0.13632608,32442.0,32428.0,4.8799]
[1609813560392,0.139,32448.0,32428.0,4.8799]
[1609813560594,0.14265,32455.0,32428.0,4.8799]
[1609813560792,0.5334,32454.0,32428.0,4.8799]
[1609813560992,0.67541,32454.0,32428.0,4.8799]
[1609813562097,0.14201,32454.0,32423.0,0.10203]
[1609813562296,0.14201,32454.0,32426.0,4.8609]
[1609813562495,0.14201,32454.0,32453.0,0.13632608]
[1609813562896,0.14201,32454.0,32435.0,0.13814]
[1609813563097,0.14201,32454.0,32435.0,0.78144]
[1609813563296,0.11578,32462.0,32435.0,0.13814]
[1609813563497,0.02539731,32470.0,32435.0,0.13814]
[1609813563697,0.14181,32472.0,32443.0,4.6519]
[1609813563896,0.46219264,32477.0,32443.0,4.80576]
[1609813564096,0.00857135,32481.0,32443.0,4.80576]
[1609813564496,0.00857135,32481.0,32479.0,0.13632608]
[1609813565598,1.121e-05,32482.0,32479.0,0.13632608]
[1609813565799,5.1223,32504.0,32479.0,0.13632608]
[1609813565800,0.50554647,32490.0,32479.0,0.13632608]
[1609813566400,0.61114193,32507.0,32479.0,0.13632608]
[1609813566598,0.61114193,32507.0,32483.0,0.13632608]
[1609813568202,0.61128211,32508.0,32483.0,0.13632608]
[1609813568603,0.61128211,32508.0,32492.0,0.13632608]
[1609813568804,0.2984,32512.0,32492.0,0.13632608]
[1609813570503,0.13632608,32493.0,32492.0,0.13632608]
[1609813570703,0.13632608,32493.0,32483.0,0.15792]
[1609813572607,0.12619,32499.0,32487.0,0.13632608]
[1609813574609,0.12619,32499.0,32491.0,0.13632608]
[1609813575714,0.2984,32512.0,32491.0,0.13632608]
[1609813576616,0.13632608,32492.0,32491.0,0.13632608]
[1609813577215,0.10144,32500.0,32483.0,0.15792]
[1609813577416,0.10144,32500.0,32476.0,0.13931]
[1609813577716,0.10144,32500.0,32474.0,3.5804]
[1609813578115,0.5227,32499.0,32474.0,3.5804]
[1609813578317,0.10144,32500.0,32468.0,0.11374]
[1609813578517,3.5149,32497.0,32455.0,7.06931539]
[1609813578717,3.5149,32497.0,32467.0,0.13632608]
[1609813579117,3.5149,32497.0,32467.0,0.28119608]
[1609813579718,3.5149,32497.0,32467.0,0.14487]
[1609813580620,3.5149,32497.0,32472.0,0.13632608]
[1609813580817,0.71345136,32500.0,32472.0,0.13632608]
[1609813582617,0.13632608,32473.0,32472.0,0.13632608]
[1609813583520,0.13632608,32473.0,32466.0,4.7844]
[1609813584618,0.15203,32477.0,32466.0,4.7844]
[1609813584819,0.6117247,32499.0,32466.0,4.88792]
[1609813585021,0.10144,32500.0,32474.0,0.13632608]
[1609813585219,0.61008259,32501.0,32474.0,0.13632608]
[1609813587023,0.61008259,32501.0,32486.0,0.13632608]
[1609813587625,0.60982909,32502.0,32486.0,0.13632608]
[1609813587826,0.46171048,32511.0,32486.0,0.13632608]
[1609813588025,0.2984,32512.0,32486.0,0.13632608]
[1609813588326,0.8719,32512.0,32473.0,0.10089]
[1609813588524,1.006,32512.0,32473.0,0.10089]
[1609813589125,0.4325,32512.0,32474.0,0.13632608]
[1609813589324,4.116,32505.0,32474.0,0.13632608]
[1609813589524,0.0927,32504.0,32474.0,0.13632608]
[1609813589725,0.0927,32504.0,32461.0,3.7671]
[1609813589926,0.60979578,32499.0,32461.0,3.7671]
[1609813590727,0.60960646,32498.0,32461.0,3.7671]
[1609813590931,0.76846646,32498.0,32461.0,3.7671]
[1609813591126,0.15886,32498.0,32477.0,0.13632608]
[1609813593130,0.13632608,32478.0,32471.0,0.13632608]
[1609813593330,0.29392608,32478.0,32471.0,0.13632608]
[1609813594434,0.29392608,32478.0,32455.0,0.13271]
[1609813595234,0.1576,32478.0,32468.0,0.13632608]
[1609813595635,0.1576,32478.0,32455.0,0.13271]
[1609813595837,0.1576,32478.0,32451.0,3.7574]
[1609813597137,0.1576,32478.0,32453.0,0.13632608]
[1609813598740,3.7863,32481.0,32453.0,0.13632608]
[1609813599140,3.7863,32481.0,32462.0,0.13632608]
[1609813599340,0.50665669,32486.0,32462.0,0.13632608]
[1609813600140,4.7539,32482.0,32462.0,0.13632608]
[1609813600342,4.88384,32482.0,32462.0,0.13632608]
[1609813600743,0.12994,32482.0,32462.0,0.13632608]
[1609813601143,0.12994,32482.0,32474.0,0.13632608]
[1609813602544,0.12994,32482.0,32466.0,0.12106]
[1609813602744,0.12994,32482.0,32459.0,0.12191]
[1609813603346,0.12994,32482.0,32469.0,0.13632608]
[1609813605145,0.13632608,32476.0,32475.0,0.13632608]
[1609813610855,0.13632608,32476.0,32459.0,0.12191]
[1609813611056,0.13632608,32476.0,32456.0,4.5496]
[1609813611257,0.12994,32482.0,32469.0,0.13632608]
[1609813611458,0.2723,32497.0,32469.0,0.13632608]
[1609813611668,0.2723,32497.0,32456.0,4.5496]
[1609813613360,0.2723,32497.0,32465.0,0.13632608]
[1609813613762,0.50896023,32496.0,32465.0,0.13632608]
[1609813614363,0.50917417,32494.0,32465.0,0.13632608]
[1609813614964,0.50902189,32493.0,32465.0,0.13632608]
[1609813615263,0.13632608,32466.0,32465.0,0.13632608]
[1609813617067,0.14402,32468.0,32465.0,0.13632608]
[1609813617268,0.14402,32468.0,32466.0,5.0248]
[1609813618170,0.13632608,32471.0,32466.0,5.0248]
[1609813619269,0.13632608,32471.0,32470.0,0.13632608]
[1609813622674,4.4836,32493.0,32459.0,4.5791]
[1609813623376,4.4836,32493.0,32482.0,0.13632608]
[1609813625279,0.13632608,32483.0,32482.0,0.13632608]
[1609813625479,0.29630608,32483.0,32482.0,0.13632608]
[1609813626480,0.15998,32483.0,32464.0,0.13343]
[1609813627381,0.15998,32483.0,32482.0,0.13632608]
[1609813627881,0.15998,32483.0,32464.0,0.13343]
[1609813628682,0.15998,32483.0,32459.0,6.81799179]
[1609813628882,0.15998,32483.0,32459.0,4.5791]
[1609813629384,0.15998,32483.0,32478.0,0.13632608]
[1609813630685,0.51638795,32494.0,32478.0,0.13632608]
[1609813630884,3.4904,32492.0,32478.0,0.13632608]
[1609813631385,0.13632608,32479.0,32478.0,0.13632608]
[1609813631887,0.29062608,32479.0,32478.0,0.13632608]
[1609813634792,0.1543,32479.0,32478.0,0.13632608]
[1609813634993,0.51946331,32493.0,32478.0,5.15222608]
[1609813635394,0.51946331,32493.0,32490.0,0.13632608]
[1609813637198,0.51946331,32493.0,32478.0,5.0159]
[1609813637398,0.51946331,32493.0,32484.0,0.13632608]
[1609813637897,0.51946331,32493.0,32478.0,5.0159]
[1609813638300,0.51946331,32493.0,32467.0,0.15707]
[1609813638499,0.51946331,32493.0,32466.0,4.8194]
[1609813639401,0.51946331,32493.0,32475.0,0.13632608]
[1609813639703,0.51946331,32493.0,32466.0,4.8194]
[1609813640905,0.52015164,32492.0,32466.0,4.8194]
[1609813641104,0.0915,32491.0,32466.0,4.8194]
[1609813641305,0.20998,32491.0,32466.0,4.8194]
[1609813641506,0.20998,32491.0,32484.0,0.13632608]
[1609813641707,0.20998,32491.0,32466.0,4.92883]
[1609813641906,0.11848,32491.0,32466.0,4.92883]
[1609813643408,0.091,32490.0,32475.0,0.13632608]
[1609813643709,0.11848,32491.0,32475.0,0.13632608]
[1609813644811,0.0931,32490.0,32475.0,0.13632608]
[1609813645512,0.13632608,32476.0,32466.0,4.92883]
[1609813646313,0.13632608,32476.0,32466.0,0.10943]
[1609813646714,0.13632608,32476.0,32455.0,0.1358]
[1609813647015,0.29599608,32476.0,32450.0,3.5346]
[1609813647515,0.15967,32476.0,32466.0,0.13632608]
[1609813647715,0.0914,32475.0,32466.0,0.13632608]
[1609813647916,0.0914,32475.0,32455.0,0.1077]
[1609813649016,0.15967,32476.0,32455.0,0.1077]
[1609813649918,4.1837,32467.0,32448.0,0.1554]
[1609813650115,0.13632608,32449.0,32447.0,0.13632608]
[1609813650716,3.7097,32456.0,32438.0,2.24202914]
[1609813650916,3.7097,32456.0,32438.0,2.39454914]
[1609813651118,3.7097,32456.0,32438.0,0.15252]
[1609813651818,3.7097,32456.0,32434.0,2.24233857]
[1609813652018,3.7097,32456.0,32442.0,0.13632608]
[1609813654123,3.7097,32456.0,32448.0,0.13632608]
[1609813654324,0.13682,32460.0,32448.0,0.13632608]
[1609813655224,3.7557,32459.0,32448.0,0.13632608]
[1609813656124,0.13632608,32449.0,32448.0,0.13632608]
[1609813656325,0.23002608,32449.0,32448.0,0.13632608]
[1609813658427,0.13632608,32449.0,32448.0,0.13632608]
[1609813659326,3.7557,32459.0,32448.0,0.13632608]
[1609813659525,0.13682,32460.0,32448.0,0.13632608]
[1609813659726,0.61952968,32472.0,32448.0,4.34082608]